[Event "NJSK 2021 Meisjes A&B"]
[Site "Almelo, Netherlands"]
[Date "2021.08.05"]
[Round "5.7"]
[White "Duson, Stella"]
[Black "Venema, Katja"]
[Result "0-1"]
[TimeControl "90min/40moves + 30sec/move"]
[WhiteElo "1259"]
[BlackElo "1356"]

1. e4 {[%clk 01:30:57]} {[%emt 00:00:02]} e6 {[%clk 01:30:53]} {[%emt
00:00:08]} 2. d4 {[%clk 01:31:17]} {[%emt 00:00:10]} d5 {[%clk 01:31:11]}
{[%emt 00:00:11]} 3. exd5 {[%clk 01:31:33]} {[%emt 00:00:13]} exd5 {[%clk
01:31:25]} {[%emt 00:00:17]} 4. Bd3 {[%clk 01:31:48]} {[%emt 00:00:15]} Nf6
{[%clk 01:30:52]} {[%emt 00:01:04]} 5. Nf3 {[%clk 01:31:52]} {[%emt 00:00:25]}
Nc6 {[%clk 01:26:55]} {[%emt 00:04:27]} 6. O-O {[%clk 01:29:53]} {[%emt
00:02:29]} Be7 {[%clk 01:25:52]} {[%emt 00:01:32]} 7. Bg5 {[%clk 01:26:06]}
{[%emt 00:04:18]} O-O {[%clk 01:25:02]} {[%emt 00:01:21]} 8. Re1 {[%clk
01:23:11]} {[%emt 00:03:23]} Bg4 {[%clk 01:23:20]} {[%emt 00:02:13]} 9. c3
{[%clk 01:20:01]} {[%emt 00:03:40]} Qd6 {[%clk 01:21:16]} {[%emt 00:02:35]} 10.
Nbd2 {[%clk 01:16:37]} {[%emt 00:03:53]} Nd8 {[%clk 01:16:00]} {[%emt
00:05:46]} 11. Qc2 {[%clk 01:13:47]} {[%emt 00:03:20]} h6 {[%clk 01:14:55]}
{[%emt 00:01:36]} 12. Bxf6 {[%clk 01:11:48]} {[%emt 00:02:27]} Qxf6 {[%clk
01:14:30]} {[%emt 00:00:55]} 13. Be2 {[%clk 01:06:21]} {[%emt 00:05:57]} Qb6
{[%clk 01:01:14]} {[%emt 00:13:47]} 14. Ne5 {[%clk 01:03:40]} {[%emt 00:03:11]}
Be6 {[%clk 00:59:32]} {[%emt 00:02:11]} 15. Bf3 {[%clk 00:56:38]} {[%emt
00:07:31]} Re8 {[%clk 00:55:32]} {[%emt 00:04:31]} 16. Re2 {[%clk 00:50:09]}
{[%emt 00:06:59]} Nc6 {[%clk 00:51:18]} {[%emt 00:04:45]} 17. Rae1 {[%clk
00:47:07]} {[%emt 00:03:32]} Nxe5 {[%clk 00:47:47]} {[%emt 00:04:01]} 18. Rxe5
{[%clk 00:46:41]} {[%emt 00:00:56]} Bd6 {[%clk 00:46:42]} {[%emt 00:01:35]} 19.
R5e2 {[%clk 00:45:57]} {[%emt 00:01:14]} c6 {[%clk 00:44:37]} {[%emt 00:02:36]}
20. Bg4 {[%clk 00:42:27]} {[%emt 00:03:58]} Qc7 {[%clk 00:40:28]} {[%emt
00:04:40]} 21. g3 {[%clk 00:41:38]} {[%emt 00:01:18]} Qd7 {[%clk 00:39:43]}
{[%emt 00:01:15]} 22. Bxe6 {[%clk 00:41:07]} {[%emt 00:01:01]} Rxe6 {[%clk
00:36:40]} {[%emt 00:03:34]} 23. Rxe6 {[%clk 00:39:58]} {[%emt 00:01:39]} fxe6
{[%clk 00:35:51]} {[%emt 00:01:20]} 24. Qg6 {[%clk 00:38:37]} {[%emt 00:01:49]}
Re8 {[%clk 00:35:22]} {[%emt 00:00:59]} 25. f4 {[%clk 00:38:50]} {[%emt
00:00:18]} Qf7 {[%clk 00:34:36]} {[%emt 00:01:16]} 26. Qxf7+ {[%clk 00:31:18]}
{[%emt 00:08:02]} Kxf7 {[%clk 00:35:00]} {[%emt 00:00:06]} 27. Nf3 {[%clk
00:31:16]} {[%emt 00:00:32]} Kf6 {[%clk 00:33:30]} {[%emt 00:02:00]} 28. Nh4
{[%clk 00:27:58]} {[%emt 00:03:48]} c5 {[%clk 00:31:43]} {[%emt 00:02:18]} 29.
dxc5 {[%clk 00:18:11]} {[%emt 00:10:15]} Bxc5+ {[%clk 00:31:38]} {[%emt
00:00:36]} 30. Kg2 {[%clk 00:18:23]} {[%emt 00:00:18]} g5 {[%clk 00:25:09]}
{[%emt 00:06:58]} 31. fxg5+ {[%clk 00:18:31]} {[%emt 00:00:22]} hxg5 {[%clk
00:23:41]} {[%emt 00:01:59]} 32. Nf3 {[%clk 00:18:42]} {[%emt 00:00:18]} e5
{[%clk 00:22:43]} {[%emt 00:01:28]} 33. h4 {[%clk 00:15:06]} {[%emt 00:04:05]}
gxh4 {[%clk 00:20:56]} {[%emt 00:02:19]} 34. gxh4 {[%clk 00:13:36]} {[%emt
00:02:00]} e4 {[%clk 00:19:26]} {[%emt 00:02:00]} 35. Kg3 {[%emt 00:05:49]}
Rg8+ {[%clk 00:16:23]} 36. Ng5 {[%clk 00:09:21]} {[%emt 00:02:58]} Ke5 {[%clk
00:10:21]} {[%emt 00:06:32]} 37. Kg4 {[%clk 00:08:48]} {[%emt 00:01:04]} Rf8
{[%clk 00:09:40]} {[%emt 00:01:09]} 38. Nh3 {[%clk 00:07:19]} {[%emt 00:02:00]}
Rg8+ {[%clk 00:08:00]} {[%emt 00:02:11]} 39. Ng5 {[%clk 00:07:07]} {[%emt
00:00:41]} Be7 {[%clk 00:07:46]} {[%emt 00:00:44]} 40. Rf1 {[%clk 00:05:36]}
{[%emt 00:02:01]} Rf8 {[%clk 00:04:40]} {[%emt 00:03:37]} 41. Nf7+ {[%clk
00:05:13]} {[%emt 00:00:53]} Ke6 {[%clk 00:04:03]} {[%emt 00:01:07]} 42. Ng5+
{[%clk 00:03:54]} {[%emt 00:01:48]} Ke5 {[%clk 00:00:57]} {[%emt 00:03:37]} 43.
Rxf8 {[%clk 00:01:05]} {[%emt 00:03:18]} Bxf8 {[%clk 00:01:11]} {[%emt
00:00:17]} 44. Nf7+ {[%clk 00:01:25]} {[%emt 00:00:11]} Kf6 {[%clk 00:01:10]}
{[%emt 00:00:29]} 45. Ng5 {[%clk 00:01:42]} {[%emt 00:00:14]} Bh6 {[%clk
00:00:54]} {[%emt 00:00:45]} 46. Kf4 {[%clk 00:01:34]} {[%emt 00:00:38]} a5
{[%clk 00:00:35]} {[%emt 00:00:50]} 47. c4 {[%clk 00:01:17]} {[%emt 00:00:47]}
dxc4 {[%clk 00:30:10]} {[%emt 00:00:55]} 48. Kxe4 {[%clk 00:31:43]} {[%emt
00:00:04]} b5 {[%clk 00:30:18]} {[%emt 00:00:22]} 49. Kd4 {[%clk 00:31:45]}
{[%emt 00:00:28]} Kf5 {[%clk 00:29:37]} {[%emt 00:01:10]} 50. Kc5 {[%clk
00:31:13]} {[%emt 00:01:03]} a4 {[%clk 00:29:25]} {[%emt 00:00:42]} 51. Kxb5
{[%clk 00:31:33]} {[%emt 00:00:10]} a3 {[%clk 00:29:36]} {[%emt 00:00:19]} 52.
bxa3 {[%clk 00:29:12]} {[%emt 00:02:51]} c3 {[%clk 00:29:58]} {[%emt 00:00:08]}
53. Nf3 {[%clk 00:29:31]} {[%emt 00:00:11]} Ke4 {[%clk 00:29:36]} {[%emt
00:00:52]} 54. Kb4 {[%clk 00:27:48]} {[%emt 00:02:13]} c2 {[%clk 00:29:09]}
{[%emt 00:00:57]} 55. Nd2 {[%clk 00:27:04]} {[%emt 00:01:14]} Bxd2+ {[%clk
00:29:29]} {[%emt 00:00:10]} 0-1

[Event "NJSK 2021 Meisjes A&B"]
[Site "Almelo, Netherlands"]
[Date "2021.08.06"]
[Round "6.1"]
[White "De Zoeten, Cato"]
[Black "Cordes, Jule"]
[Result "1/2-1/2"]
[TimeControl "90min/40moves + 30sec/move"]
[WhiteElo "1881"]
[BlackElo "1790"]

1. e4 {[%clk 01:30:57]} {[%emt 00:00:02]} c5 {[%clk 01:30:53]} {[%emt
00:00:08]} 2. Nf3 {[%clk 01:31:23]} {[%emt 00:00:04]} Nc6 {[%clk 01:31:10]}
{[%emt 00:00:13]} 3. d4 {[%clk 01:31:44]} {[%emt 00:00:09]} cxd4 {[%clk
01:31:27]} {[%emt 00:00:12]} 4. Nxd4 {[%clk 01:32:11]} {[%emt 00:00:03]} g6
{[%clk 01:31:20]} {[%emt 00:00:38]} 5. c4 {[%clk 01:32:23]} {[%emt 00:00:17]}
Bg7 {[%clk 01:30:45]} {[%emt 00:01:05]} 6. Be3 {[%clk 01:32:48]} {[%emt
00:00:06]} Nf6 {[%clk 01:30:56]} {[%emt 00:00:19]} 7. Nc3 {[%clk 01:33:12]}
{[%emt 00:00:06]} O-O {[%clk 01:31:08]} {[%emt 00:00:18]} 8. Be2 {[%clk
01:33:14]} {[%emt 00:00:28]} d6 {[%clk 01:31:02]} {[%emt 00:00:36]} 9. f3
{[%clk 01:33:21]} {[%emt 00:00:22]} Bd7 {[%clk 01:30:41]} {[%emt 00:00:52]} 10.
Qd2 {[%clk 01:33:19]} {[%emt 00:00:32]} Nxd4 {[%clk 01:26:56]} {[%emt
00:04:15]} 11. Bxd4 {[%clk 01:27:57]} {[%emt 00:05:51]} Bc6 {[%clk 01:23:53]}
{[%emt 00:03:33]} 12. O-O {[%clk 01:11:42]} {[%emt 00:16:44]} Nd7 {[%clk
01:19:56]} {[%emt 00:04:28]} 13. Bxg7 {[%clk 01:07:24]} {[%emt 00:04:48]} Kxg7
{[%clk 01:20:20]} {[%emt 00:00:07]} 14. Qd4+ {[%clk 01:07:24]} {[%emt
00:00:30]} Kg8 {[%clk 01:20:30]} {[%emt 00:00:21]} 15. Rad1 {[%clk 01:05:54]}
{[%emt 00:01:59]} Qb6 {[%clk 01:14:08]} {[%emt 00:06:52]} 16. Nd5 {[%clk
01:04:41]} {[%emt 00:01:43]} Qxd4+ {[%clk 01:11:36]} {[%emt 00:03:02]} 17. Rxd4
{[%clk 01:05:09]} {[%emt 00:00:02]} Bxd5 {[%clk 01:09:17]} {[%emt 00:02:49]} 18.
exd5 {[%clk 01:04:37]} {[%emt 00:01:02]} Rfc8 {[%clk 00:56:59]} {[%emt
00:12:47]} 19. Re4 {[%clk 00:52:47]} {[%emt 00:12:19]} Kf8 {[%clk 00:56:07]}
{[%emt 00:01:22]} 20. Re1 {[%clk 00:48:58]} {[%emt 00:04:19]} Rc7 {[%clk
00:53:17]} {[%emt 00:03:21]} 21. Bf1 {[%clk 00:47:38]} {[%emt 00:01:50]} Nf6
{[%clk 00:35:12]} {[%emt 00:18:35]} 22. R4e3 {[%clk 00:43:03]} {[%emt
00:05:05]} a5 {[%clk 00:33:08]} {[%emt 00:02:35]} 23. Rb3 {[%clk 00:30:27]}
{[%emt 00:13:05]} Nd7 {[%clk 00:28:54]} {[%emt 00:04:43]} 24. Ree3 {[%clk
00:27:41]} {[%emt 00:03:16]} Nc5 {[%clk 00:18:57]} {[%emt 00:10:27]} 25. Rb5
{[%clk 00:26:30]} {[%emt 00:01:42]} Rcc8 {[%clk 00:16:20]} {[%emt 00:03:08]} 26.
Ra3 {[%clk 00:17:31]} {[%emt 00:09:28]} a4 {[%clk 00:16:04]} {[%emt 00:00:45]}
27. b3 {[%clk 00:17:02]} {[%emt 00:01:00]} Ra7 {[%clk 00:07:55]} {[%emt
00:08:39]} 28. g3 {[%clk 00:10:18]} {[%emt 00:07:14]} e6 {[%clk 00:03:17]}
{[%emt 00:05:08]} 29. b4 {[%clk 00:05:16]} {[%emt 00:05:32]} Nd7 {[%clk
00:03:33]} {[%emt 00:00:14]} 30. dxe6 {[%clk 00:05:12]} {[%emt 00:00:34]} fxe6
{[%clk 00:04:02]} {[%emt 00:00:02]} 31. Re3 {[%clk 00:03:17]} {[%emt 00:02:25]}
Kf7 {[%clk 00:03:11]} {[%emt 00:01:21]} 32. f4 {[%clk 00:03:18]} {[%emt
00:00:29]} b6 {[%clk 00:02:10]} {[%emt 00:01:32]} 33. Bh3 {[%clk 00:02:46]}
{[%emt 00:01:01]} Re8 {[%clk 00:02:24]} {[%emt 00:00:16]} 34. Rd3 {[%clk
00:01:46]} {[%emt 00:01:30]} Ke7 {[%clk 00:02:26]} {[%emt 00:00:28]} 35. Re3
{[%clk 00:01:28]} {[%emt 00:00:48]} Kf7 {[%clk 00:02:36]} {[%emt 00:00:20]} 36.
Rd3 {[%emt 00:01:18]} Ke7 {[%clk 00:02:59]} {[%emt 00:00:06]} 37. Re3 {[%clk
00:00:37]} {[%emt 00:00:34]} 1/2-1/2

[Event "NJSK 2021 Meisjes A&B"]
[Site "Almelo, Netherlands"]
[Date "2021.08.06"]
[Round "6.2"]
[White "Van Essen, Marieke"]
[Black "Ricken, Katharina"]
[Result "0-1"]
[TimeControl "90min/40moves + 30sec/move"]
[WhiteElo "1610"]
[BlackElo "2030"]

1. e4 {[%clk 01:30:58]} {[%emt 00:00:02]} c5 {[%clk 01:30:54]} {[%emt
00:00:07]} 2. Nf3 {[%clk 01:31:24]} {[%emt 00:00:03]} g6 {[%clk 01:31:20]}
{[%emt 00:00:03]} 3. d4 {[%clk 01:31:50]} {[%emt 00:00:04]} cxd4 {[%clk
01:31:47]} {[%emt 00:00:03]} 4. Nxd4 {[%clk 01:32:16]} {[%emt 00:00:05]} Nc6
{[%clk 01:32:11]} {[%emt 00:00:05]} 5. Be3 {[%clk 01:32:24]} {[%emt 00:00:22]}
Nf6 {[%clk 01:32:23]} {[%emt 00:00:19]} 6. Nc3 {[%clk 01:32:46]} {[%emt
00:00:07]} Bg7 {[%clk 01:32:40]} {[%emt 00:00:13]} 7. Be2 {[%clk 01:32:40]}
{[%emt 00:00:36]} O-O {[%clk 01:32:34]} {[%emt 00:00:35]} 8. O-O {[%clk
01:31:33]} {[%emt 00:01:37]} d5 {[%clk 01:32:55]} {[%emt 00:00:09]} 9. exd5
{[%clk 01:29:15]} {[%emt 00:02:48]} Nb4 {[%clk 01:31:50]} {[%emt 00:01:35]} 10.
Qd2 {[%clk 01:22:39]} {[%emt 00:07:06]} Nfxd5 {[%clk 01:30:49]} {[%emt
00:01:31]} 11. Nxd5 {[%clk 01:19:01]} {[%emt 00:04:07]} Nxd5 {[%clk 01:30:37]}
{[%emt 00:00:42]} 12. Bh6 {[%clk 01:17:02]} {[%emt 00:02:29]} e5 {[%clk
01:28:10]} {[%emt 00:02:58]} 13. Bxg7 {[%clk 01:15:14]} {[%emt 00:02:18]} Kxg7
{[%emt 00:00:03]} 14. Rad1 {[%clk 01:14:43]} {[%emt 00:00:58]} Nf4 {[%clk
01:24:35]} {[%emt 00:04:34]} 15. Rfe1 {[%clk 01:07:13]} {[%emt 00:08:00]} Qxd4
{[%clk 01:23:14]} {[%emt 00:01:53]} 16. Qxd4 {[%clk 01:03:38]} {[%emt
00:04:04]} Nxe2+ {[%clk 01:22:57]} {[%emt 00:00:46]} 17. Rxe2 {[%clk 01:04:03]}
{[%emt 00:00:05]} exd4 {[%clk 01:23:23]} {[%emt 00:00:04]} 18. Rxd4 {[%clk
01:04:27]} {[%emt 00:00:06]} Be6 {[%clk 01:23:34]} {[%emt 00:00:18]} 19. Red2
{[%clk 01:01:41]} {[%emt 00:03:16]} Kf6 {[%clk 01:23:46]} {[%emt 00:00:19]} 20.
f3 {[%clk 01:01:24]} {[%emt 00:00:47]} Ke7 {[%clk 01:24:07]} {[%emt 00:00:09]}
0-1

[Event "NJSK 2021 Meisjes A&B"]
[Site "Almelo, Netherlands"]
[Date "2021.08.06"]
[Round "6.3"]
[White "Den Heijer, Rolinde"]
[Black "Zubair, Javeria Komal"]
[Result "1/2-1/2"]
[TimeControl "90min/40moves + 30sec/move"]
[WhiteElo "1483"]
[BlackElo "1490"]

1. e4 {[%clk 01:30:59]} c5 {[%clk 01:30:57]} {[%emt 00:00:04]} 2. Nf3 {[%clk
01:31:25]} {[%emt 00:00:03]} e6 {[%clk 01:31:23]} {[%emt 00:00:05]} 3. d4
{[%clk 01:31:51]} {[%emt 00:00:03]} cxd4 {[%clk 01:31:49]} {[%emt 00:00:04]} 4.
Nxd4 {[%clk 01:32:16]} {[%emt 00:00:06]} Nc6 {[%clk 01:32:14]} {[%emt
00:00:05]} 5. Nc3 {[%clk 01:32:38]} {[%emt 00:00:08]} Nf6 {[%clk 01:32:14]}
{[%emt 00:00:31]} 6. a3 {[%clk 01:31:56]} {[%emt 00:01:12]} a6 {[%clk
01:32:32]} {[%emt 00:00:12]} 7. Be2 {[%clk 01:31:23]} {[%emt 00:01:02]} Bc5
{[%clk 01:32:15]} {[%emt 00:00:47]} 8. Nb3 {[%clk 01:31:00]} {[%emt 00:00:53]}
Ba7 {[%clk 01:32:11]} {[%emt 00:00:34]} 9. Bg5 {[%clk 01:29:39]} {[%emt
00:01:50]} Qb6 {[%clk 01:20:48]} {[%emt 00:11:53]} 10. Rf1 {[%clk 01:22:00]}
{[%emt 00:08:09]} Ng8 {[%clk 01:13:30]} {[%emt 00:07:48]} 11. Qd3 {[%clk
01:16:26]} {[%emt 00:06:04]} Ne5 {[%clk 01:07:36]} {[%emt 00:06:24]} 12. Qg3
{[%clk 01:14:06]} {[%emt 00:02:49]} Ng6 {[%clk 00:59:58]} {[%emt 00:08:06]} 13.
O-O-O {[%clk 01:09:02]} {[%emt 00:05:35]} Bb8 {[%clk 00:56:57]} {[%emt
00:03:32]} 14. Qd3 {[%clk 01:02:10]} {[%emt 00:07:21]} Bf4+ {[%clk 00:47:11]}
{[%emt 00:10:17]} 15. Bxf4 {[%clk 01:02:07]} {[%emt 00:00:32]} Nxf4 {[%clk
00:47:36]} {[%emt 00:00:05]} 16. Qg3 {[%clk 01:01:38]} {[%emt 00:00:59]} Nxe2+
{[%clk 00:37:23]} {[%emt 00:10:43]} 17. Nxe2 {[%clk 01:01:35]} {[%emt
00:00:32]} g6 {[%clk 00:37:44]} {[%emt 00:00:09]} 18. Qc3 {[%clk 00:53:57]}
{[%emt 00:08:09]} f6 {[%clk 00:37:15]} {[%emt 00:01:00]} 19. g4 {[%clk
00:53:20]} {[%emt 00:01:07]} Qc6 {[%clk 00:35:24]} {[%emt 00:02:20]} 20. Qd4
{[%clk 00:46:24]} {[%emt 00:07:27]} e5 {[%clk 00:34:32]} {[%emt 00:01:22]} 21.
Qd3 {[%clk 00:44:35]} {[%emt 00:02:18]} Ne7 {[%clk 00:30:23]} {[%emt 00:04:40]}
22. f4 {[%clk 00:39:03]} {[%emt 00:06:02]} exf4 {[%clk 00:29:44]} {[%emt
00:01:09]} 23. Rxf4 {[%clk 00:38:23]} {[%emt 00:01:09]} O-O {[%clk 00:29:59]}
{[%emt 00:00:15]} 24. e5 {[%clk 00:33:32]} {[%emt 00:05:21]} fxe5 {[%clk
00:27:43]} {[%emt 00:02:47]} 25. Rxf8+ {[%clk 00:32:57]} {[%emt 00:01:05]} Kxf8
{[%clk 00:28:07]} {[%emt 00:00:06]} 26. Rf1+ {[%clk 00:23:51]} {[%emt
00:09:35]} Ke8 {[%clk 00:27:12]} {[%emt 00:01:25]} 27. Qh3 {[%clk 00:20:39]}
{[%emt 00:03:42]} h5 {[%clk 00:25:02]} {[%emt 00:02:40]} 28. gxh5 {[%clk
00:19:53]} {[%emt 00:01:15]} d5 {[%clk 00:25:08]} {[%emt 00:00:25]} 29. Qe3
{[%clk 00:17:26]} {[%emt 00:02:56]} Bf5 {[%clk 00:24:18]} {[%emt 00:01:21]} 30.
c3 {[%clk 00:17:09]} {[%emt 00:00:47]} Qb5 {[%clk 00:19:55]} {[%emt 00:04:53]}
31. Qxe5 {[%clk 00:14:44]} {[%emt 00:02:55]} Qxb3 {[%clk 00:11:06]} {[%emt
00:09:19]} 32. Rxf5 {[%clk 00:15:06]} {[%emt 00:00:07]} gxf5 {[%clk 00:10:59]}
{[%emt 00:00:37]} 33. Qh8+ {[%clk 00:15:31]} {[%emt 00:00:05]} Kf7 {[%clk
00:11:02]} {[%emt 00:00:28]} 34. Qxa8 {[%clk 00:15:57]} {[%emt 00:00:04]} Qc4
{[%clk 00:10:38]} {[%emt 00:00:54]} 35. Nd4 {[%clk 00:13:35]} {[%emt 00:02:52]}
f4 {[%clk 00:09:04]} {[%emt 00:02:04]} 36. Kc2 {[%clk 00:10:15]} {[%emt
00:03:50]} f3 {[%clk 00:09:11]} {[%emt 00:00:23]} 37. Nxf3 {[%clk 00:09:51]}
{[%emt 00:00:54]} Qe4+ {[%clk 00:09:35]} {[%emt 00:00:05]} 38. Kb3 {[%clk
00:09:59]} {[%emt 00:00:21]} Qc4+ {[%clk 00:08:27]} {[%emt 00:01:39]} 39. Kc2
{[%clk 00:10:18]} {[%emt 00:00:11]} Qe4+ {[%clk 00:08:54]} {[%emt 00:00:04]} 40.
Kc1 {[%clk 00:08:01]} {[%emt 00:02:47]} Qxf3 {[%clk 00:08:32]} {[%emt
00:00:52]} 41. Qxb7 {[%clk 00:04:06]} {[%emt 00:04:25]} Qxh5 {[%clk 00:01:26]}
{[%emt 00:07:35]} 42. Qxa6 {[%clk 00:03:00]} {[%emt 00:01:36]} Qxh2 {[%clk
00:00:44]} {[%emt 00:01:13]} 43. a4 {[%clk 00:01:36]} {[%emt 00:01:55]} Qh1+
{[%clk 00:29:27]} {[%emt 00:01:47]} 44. Kc2 {[%clk 00:31:50]} {[%emt 00:00:16]}
Nf5 {[%clk 00:28:11]} {[%emt 00:01:46]} 45. Qb7+ {[%clk 00:31:34]} {[%emt
00:00:44]} Kf6 {[%clk 00:27:00]} {[%emt 00:01:42]} 46. Qb6+ {[%clk 00:30:48]}
{[%emt 00:01:16]} Ke5 {[%clk 00:25:56]} {[%emt 00:01:34]} 47. a5 {[%clk
00:27:33]} {[%emt 00:03:45]} Qe4+ {[%clk 00:23:08]} {[%emt 00:03:18]} 48. Kb3
{[%clk 00:26:20]} {[%emt 00:01:43]} Qc4+ {[%clk 00:23:16]} {[%emt 00:00:22]} 49.
Ka3 {[%clk 00:25:10]} {[%emt 00:01:41]} Nd6 {[%clk 00:21:17]} {[%emt 00:02:29]}
50. Qb4 {[%clk 00:21:52]} {[%emt 00:03:48]} Qf1 {[%clk 00:17:42]} {[%emt
00:04:05]} 51. Qd4+ {[%clk 00:19:08]} {[%emt 00:03:13]} Ke6 {[%clk 00:17:55]}
{[%emt 00:00:18]} 52. Kb3 {[%clk 00:18:54]} {[%emt 00:00:44]} Qb5+ {[%clk
00:16:26]} {[%emt 00:01:59]} 53. Qb4 {[%clk 00:19:06]} {[%emt 00:00:17]} Qe2
{[%clk 00:13:44]} {[%emt 00:03:11]} 54. Qb6 {[%clk 00:17:02]} {[%emt 00:02:35]}
Ke5 {[%clk 00:11:22]} {[%emt 00:02:53]} 55. Qc7 {[%clk 00:14:26]} {[%emt
00:03:04]} Qb5+ {[%clk 00:10:37]} {[%emt 00:01:16]} 56. Kc2 {[%clk 00:13:32]}
{[%emt 00:01:25]} Qa4+ {[%clk 00:10:28]} {[%emt 00:00:41]} 57. b3 {[%clk
00:11:38]} {[%emt 00:02:23]} Qa2+ {[%clk 00:10:39]} {[%emt 00:00:19]} 58. Kd3
{[%clk 00:11:14]} {[%emt 00:00:54]} Qb1+ {[%clk 00:10:50]} {[%emt 00:00:20]} 59.
Kd2 {[%clk 00:10:51]} {[%emt 00:00:51]} Qb2+ {[%clk 00:10:59]} {[%emt
00:00:23]} 60. Ke1 {[%clk 00:10:47]} {[%emt 00:00:33]} Qc1+ {[%clk 00:10:41]}
{[%emt 00:00:49]} 61. Ke2 {[%clk 00:10:03]} {[%emt 00:00:41]} 1/2-1/2